bitfinex/quotes_ETHUSD_20240902
["timestamp","ask_amount","ask_price","bid_price","bid_amount"]
[1725252869541,2.94282178,2444.9,2444.7,2.3577]
[1725252870179,2.86321,2444.8,2444.4,9.626547]
[1725252870480,2.86321,2444.8,2444.5,2.3035]
[1725252870481,2.94281173,2444.8,2444.5,2.3035]
[1725252870687,3.0,2444.7,2444.5,2.3035]
[1725252870843,3.0,2444.7,2444.4,9.626547]
[1725252870844,5.72714,2444.5,2444.4,9.626547]
[1725252871180,5.80641297,2444.5,2444.4,2.186547]
[1725252872986,8.66998297,2444.5,2444.4,2.186547]
[1725252873146,10.32897166,2444.5,2444.4,2.186547]
[1725252877574,10.32897166,2444.5,2444.4,4.486947]
[1725252877889,8.80641297,2444.5,2444.4,4.486947]
[1725252878648,5.94284297,2444.5,2444.4,4.486947]
[1725252879767,3.07927297,2444.5,2444.4,4.486947]
[1725252881506,0.07927297,2444.5,2444.4,4.486947]
[1725252881712,3.07927297,2444.5,2444.4,4.486947]
[1725252882626,0.07927297,2444.5,2444.4,4.486947]
[1725252882836,0.07927297,2444.5,2444.4,4.9356417]
[1725252883119,0.0757123,2444.5,2444.4,4.9356417]
[1725252883424,2.86339,2444.7,2444.4,4.9356417]
[1725252883731,0.07588999,2444.6,2444.4,4.486947]
[1725252883900,0.07588999,2444.6,2444.5,2.3001]
[1725252884489,6.29168589,2444.8,2444.5,2.3001]
[1725252884689,0.07616726,2444.6,2444.5,2.3001]
[1725252884897,6.29168589,2444.8,2444.5,2.3001]
[1725252885098,0.07616726,2444.6,2444.5,2.3001]
[1725252885323,6.29168589,2444.8,2444.5,2.3001]
[1725252885522,0.07616726,2444.6,2444.5,2.3001]
[1725252885687,3.42842589,2444.8,2444.5,2.3001]
[1725252885889,0.07616726,2444.6,2444.5,2.3001]
[1725252886124,3.42842589,2444.8,2444.5,2.75694625]
[1725252886354,0.07616726,2444.6,2444.5,2.3001]
[1725252886627,11.98376677,2445.2,2444.7,2.3001]
[1725252886930,8.00492275,2445.2,2444.7,2.3001]
[1725252887296,2.86299,2445.0,2444.7,2.3001]
[1725252887715,2.86297,2445.1,2444.7,2.3001]
[1725252887920,3.0,2445.0,2444.7,2.3001]
[1725252891458,3.0,2445.1,2444.8,2.3649]
[1725252892141,5.86287,2445.1,2444.8,2.3649]
[1725252892661,0.07673436,2445.0,2444.8,2.3649]
[1725252894158,2.93980436,2445.0,2444.8,2.3649]
[1725252894458,3.0,2444.9,2444.8,2.3649]
[1725252894763,3.07683427,2444.9,2444.8,2.3649]
[1725252895919,0.07683427,2444.9,2444.8,2.3649]
[1725252897063,3.0,2445.1,2444.8,2.3649]
[1725252897347,0.07672083,2445.0,2444.8,2.3649]
[1725252898358,2.93972083,2445.0,2444.8,2.3649]
[1725252898661,3.0,2444.9,2444.8,2.3649]
[1725252898905,3.07669162,2444.9,2444.8,2.3649]
[1725252899530,0.07669162,2444.9,2444.8,2.3649]
[1725252899730,2.8633,2444.8,2444.5,2.4244]
[1725252900148,0.07645806,2444.7,2444.5,2.4244]
[1725252900526,2.8633,2444.8,2444.5,2.4244]
[1725252901154,0.07645806,2444.7,2444.5,2.4244]
[1725252901352,3.82010187,2444.7,2444.5,2.4244]
[1725252901570,5.86318,2444.9,2444.5,2.4244]
[1725252902034,0.07648472,2444.8,2444.5,2.4244]
[1725252903189,2.93977472,2444.8,2444.5,2.4244]
[1725252904171,0.07648472,2444.8,2444.5,2.4244]
[1725252904334,0.07648472,2444.8,2444.7,2.4112]
[1725252904736,3.0,2445.0,2444.7,2.4112]
[1725252904984,0.07655796,2444.8,2444.7,2.4112]
[1725252905173,3.0,2445.0,2444.7,2.4112]
[1725252905381,0.07644457,2444.8,2444.7,2.4112]
[1725252905675,0.07658197,2444.8,2444.7,2.4112]
[1725252905879,3.0,2445.0,2444.7,2.4112]
[1725252906038,0.07644688,2444.8,2444.7,2.4112]
[1725252906238,3.0,2445.0,2444.7,2.4112]
[1725252906473,0.07661144,2444.9,2444.7,2.4112]
[1725252906679,0.07661144,2444.9,2444.7,2.65232]
[1725252909473,0.07661144,2444.9,2444.8,2.4962]
[1725252909778,4.56341677,2445.5,2444.8,2.57799721]
[1725252909779,2.86258,2445.4,2444.8,2.57799721]
[1725252909976,0.07680658,2444.9,2444.8,2.57799721]
[1725252910151,2.86244,2445.5,2444.9,2.4962]
[1725252910340,2.86244,2445.5,2445.0,0.08179158]
[1725252910543,2.86244,2445.5,2445.0,2.358]
[1725252910881,3.0,2445.4,2445.0,2.358]
[1725252911492,3.0,2445.5,2445.0,2.358]
[1725252912343,3.0,2445.6,2445.1,3.017703]
[1725252912566,3.0,2445.6,2445.1,2.4956]
[1725252916342,2.86224,2445.7,2445.1,2.4956]
[1725252916673,5.72403,2445.9,2445.3,2.312]
[1725252916982,5.724,2445.9,2445.3,2.39377801]
[1725252917553,2.86206,2445.8,2445.3,2.39377801]
[1725252917755,2.86206,2445.8,2445.4,2.3396]
[1725252917962,3.0,2445.7,2445.4,2.3396]
[1725252918989,4.55943772,2446.3,2445.3,0.81142047]
[1725252918990,2.86159,2446.2,2445.6,2.4232]
[1725252919289,2.8617,2446.1,2445.8,2.4232]
[1725252919490,5.72347,2446.1,2445.8,2.4232]
[1725252919693,5.72346,2446.1,2445.8,2.4232]
[1725252919981,2.8617,2446.1,2445.8,2.4232]
[1725252920352,3.0,2446.0,2445.8,2.4232]
[1725252922338,3.0,2446.0,2445.8,2.66552]
[1725252922699,0.07340477,2445.9,2445.8,2.66552]
[1725252930457,0.07340477,2445.9,2445.8,2.4232]
[1725252931145,2.86223,2445.7,2445.5,2.2614]
[1725252931347,2.86228,2445.6,2445.5,2.2614]
[1725252931553,2.93563666,2445.6,2445.5,2.2614]
[1725252931758,0.07335666,2445.6,2445.5,2.2614]
[1725252932134,2.93563666,2445.6,2445.5,2.2614]
[1725252933571,5.93563666,2445.6,2445.4,7.44]
[1725252933772,2.86305,2445.0,2444.8,2.3411]
[1725252933929,5.72611,2445.0,2444.8,2.3411]
[1725252934129,0.07300121,2444.9,2444.8,2.3411]
[1725252935334,2.93610121,2444.9,2444.8,2.3411]
[1725252935645,2.86341,2444.7,2444.5,2.3175]
[1725252936052,0.07247816,2444.6,2444.5,2.3175]
[1725252937023,2.86316,2444.9,2444.5,2.3175]
[1725252937380,2.93530539,2444.8,2444.5,2.3175]
[1725252938218,0.07207539,2444.8,2444.5,2.3175]
[1725252939222,2.93529539,2444.8,2444.5,2.3175]
[1725252939818,0.42839811,2444.7,2444.5,2.3175]
[1725252940177,0.0718194,2444.6,2444.5,2.3175]
[1725252943496,2.9352694,2444.6,2444.5,2.3175]
[1725252943996,0.0718194,2444.6,2444.5,2.3175]
[1725252944741,2.9352694,2444.6,2444.5,2.3175]
[1725252945496,5.72714,2444.5,2444.4,2.186547]
[1725252945694,5.79906164,2444.5,2444.4,2.186547]
[1725252947635,8.79906164,2444.5,2444.4,2.186547]
[1725252953032,5.93549164,2444.5,2444.4,4.577447]
[1725252956209,3.07192164,2444.5,2444.4,4.577447]
[1725252956649,5.93549164,2444.5,2444.4,4.577447]
[1725252959451,3.07192164,2444.5,2444.4,4.577447]
[1725252960446,5.93549164,2444.5,2444.4,4.577447]
[1725252960670,3.07192164,2444.5,2444.4,4.577447]
[1725252961942,5.93549164,2444.5,2444.4,4.577447]
[1725252962331,3.07192164,2444.5,2444.4,4.577447]
[1725252964221,5.93549164,2444.5,2444.4,4.577447]
[1725252965417,3.07192164,2444.5,2444.4,4.577447]
[1725252966594,5.93549164,2444.5,2444.4,2.186547]
[1725252966919,6.85822761,2444.5,2444.4,2.186547]
[1725252969442,9.72179761,2444.5,2444.4,2.186547]
[1725252972637,16.6671561,2444.5,2444.4,1.35297338]
[1725252972979,16.6671561,2444.5,2442.0,5.85789348]
[1725252972980,2.86486,2443.4,2443.3,9.8613]
[1725252973131,2.86486,2443.4,2443.3,1.9929]
[1725252973330,0.06519255,2443.4,2443.3,1.9929]
[1725252973899,0.49368452,2443.4,2443.3,1.9929]
[1725252974189,0.49368452,2443.4,2443.3,2.5605397]
[1725252974381,0.49368452,2443.4,2443.3,1.9929]
[1725252976073,0.49368452,2443.4,2443.3,7.72284]
[1725252976373,0.49368452,2443.4,2443.3,4.85787]
[1725252976674,0.42849197,2443.4,2443.3,4.85787]
[1725252976883,0.42849197,2443.4,2443.3,1.9929]
[1725252977172,0.49342924,2443.4,2443.3,1.9929]
[1725252979388,0.49342924,2443.4,2443.3,2.48689433]
[1725252979571,0.49342924,2443.4,2443.3,5.35186433]
[1725252979875,0.49342924,2443.4,2443.3,2.48689433]
[1725252980369,0.49342924,2443.4,2443.3,5.35186433]
[1725252980887,0.49342924,2443.4,2443.3,11.22483769]
[1725252981170,0.42849197,2443.4,2443.3,11.22483769]
[1725252981373,0.42849197,2443.4,2443.3,11.14300103]
[1725252983079,0.42849197,2443.4,2443.3,2.48689433]
[1725252983237,0.42849197,2443.4,2443.3,1.9929]
[1725252983441,0.49344536,2443.4,2443.3,1.9929]
[1725252985984,0.49344536,2443.4,2443.3,4.85787]
[1725252987078,0.49344536,2443.4,2443.3,7.72284]
[1725252987456,0.42849197,2443.4,2443.3,7.72284]
[1725252987790,0.42849197,2443.4,2443.3,7.80467386]
[1725252988585,0.42849197,2443.4,2443.3,7.72284]
[1725252990482,0.49125488,2443.4,2443.3,7.72284]
[1725252991450,0.49125488,2443.4,2443.3,7.80467457]
[1725252993612,0.42849197,2443.4,2443.3,7.80467457]
[1725252994032,0.49109874,2443.4,2443.3,7.80467457]
[1725252994335,0.49109874,2443.4,2443.3,7.72284]
[1725252994483,0.49109874,2443.4,2443.3,10.6490067]
[1725252996118,0.42849197,2443.4,2443.3,10.6490067]
[1725252996324,0.49144999,2443.4,2443.3,10.6490067]
[1725252996733,0.42849197,2443.4,2443.3,10.6490067]
[1725252998030,0.49147215,2443.4,2443.3,10.6490067]
[1725252999631,0.42849197,2443.4,2443.3,10.6490067]
[1725253000737,0.42849197,2443.4,2443.3,13.5139767]
[1725253000938,0.42849197,2443.4,2443.3,14.0639767]
[1725253001144,0.42849197,2443.4,2443.3,11.13781]
[1725253005247,0.42849197,2443.4,2443.3,7.72284]
[1725253007917,0.42849197,2443.4,2443.3,7.80467333]
[1725253008141,0.49161625,2443.4,2443.3,7.80467333]
[1725253009450,0.42849197,2443.4,2443.3,7.80467333]
[1725253010853,0.42849197,2443.4,2443.3,7.72284]
[1725253013151,0.42849197,2443.4,2443.3,7.80467374]
[1725253013450,2.3825,2444.1,2443.6,2.86456]
[1725253013749,2.81088874,2444.1,2443.7,0.08183236]
[1725253013947,0.58810001,2444.0,2443.7,1.30057596]
[1725253014921,2.86439,2443.8,2443.2,2.86499]
[1725253015122,3.21089517,2443.9,2443.3,2.8649]
[1725253015339,0.06319537,2443.7,2443.3,2.8649]
[1725253015654,0.06309321,2443.6,2443.3,2.8649]
[1725253015951,0.85314189,2443.8,2443.3,2.8649]
[1725253016451,0.06314443,2443.7,2443.3,2.8649]
[1725253016814,0.85314189,2443.8,2443.3,2.8649]
[1725253017014,0.06286383,2443.6,2443.3,2.8649]
[1725253017213,0.06291505,2443.7,2443.3,2.8649]
[1725253017446,0.0628126,2443.5,2443.3,2.8649]
[1725253017607,0.85314189,2443.8,2443.3,2.8649]
[1725253017806,0.06278539,2443.4,2443.3,2.8649]
[1725253018021,0.85314189,2443.8,2443.3,2.8649]
[1725253018264,0.06278539,2443.4,2443.3,2.8649]
[1725253018566,0.85314189,2443.8,2443.3,2.8649]
[1725253018756,0.06276137,2443.4,2443.3,2.8649]
[1725253018934,0.85314189,2443.8,2443.3,2.8649]
[1725253019263,0.70150792,2443.7,2443.2,2.86499]
[1725253020760,3.56602792,2443.7,2443.1,2.86518]
[1725253020959,0.72835698,2443.6,2443.2,2.86507]
[1725253021135,0.06289592,2443.5,2443.2,2.86507]
[1725253024564,3.50298808,2443.7,2443.2,2.86507]
[1725253024725,0.0623115,2443.4,2443.2,2.86507]
[1725253025061,3.50298808,2443.7,2443.2,2.86507]
[1725253025267,0.06226025,2443.3,2443.2,2.86507]
[1725253025439,3.50298808,2443.7,2443.2,2.86507]
[1725253025776,3.50298808,2443.7,2442.9,2.3096]
[1725253025777,2.86504,2443.3,2442.9,2.3096]
[1725253026127,0.06241953,2443.2,2442.7,2.2897]
[1725253026436,2.86516,2443.2,2442.7,5.15537]
[1725253026624,3.22061351,2443.4,2442.7,5.15537]
[1725253026625,6.08557351,2443.4,2442.7,5.15537]
[1725253026825,3.42469135,2443.3,2442.7,5.15537]
[1725253027075,3.48716212,2443.3,2442.8,2.92595954]
[1725253032179,0.62218212,2443.3,2442.8,5.79149954]
[1725253032473,0.06247077,2443.3,2442.8,5.79149954]
[1725253032971,2.92746077,2443.3,2442.8,5.79149954]
[1725253033179,0.06247077,2443.3,2442.8,5.79149954]
[1725253033534,0.06247077,2443.3,2442.8,8.65699954]
[1725253034071,0.06247077,2443.3,2442.8,8.65694954]
[1725253034300,0.06247077,2443.3,2442.8,5.79144954]
[1725253034505,0.06247077,2443.3,2442.8,2.92595954]
[1725253034817,0.42842822,2443.5,2443.1,2.8652]
[1725253034962,0.06216317,2443.2,2443.1,2.8652]
[1725253035158,0.42842822,2443.5,2443.1,2.8652]
[1725253035404,0.06226564,2443.4,2443.0,5.79117954]
[1725253035763,0.06226564,2443.4,2443.0,2.86522]
[1725253036969,0.06226564,2443.4,2443.0,5.73047]
[1725253037186,0.06226564,2443.4,2443.0,2.86522]
[1725253038106,0.06226564,2443.4,2443.1,2.86513]
[1725253038853,0.06226564,2443.4,2443.0,5.79117954]
[1725253039085,0.06226564,2443.4,2443.0,2.86522]
[1725253039599,0.06226564,2443.4,2443.1,2.8652]
[1725253039804,0.06226564,2443.4,2443.0,2.86522]
[1725253040099,0.06226564,2443.4,2443.1,4.08449141]
[1725253041083,0.06226564,2443.4,2443.2,2.94694153]
[1725253041288,0.06226564,2443.4,2443.2,2.86509]
[1725253044987,0.06226564,2443.4,2443.3,6.37997141]
[1725253045234,0.06226564,2443.4,2443.3,6.46181932]
[1725253045798,0.06226564,2443.4,2443.3,9.28968932]
[1725253046235,0.42842822,2443.5,2443.4,5.72972]
[1725253046436,5.11919,2444.2,2443.4,8.69140693]
[1725253046638,5.11919,2444.2,2443.6,4.08387141]
[1725253046861,0.42838066,2443.9,2443.7,0.08183389]
[1725253047446,0.42838066,2443.9,2443.6,4.08387141]
[1725253049110,0.42838066,2443.9,2443.7,0.08183539]
[1725253049579,0.42838066,2443.9,2443.8,2.2586]
[1725253050449,0.42838066,2443.9,2443.8,5.20482177]
[1725253051269,0.42838066,2443.9,2443.8,5.12299]
[1725253053967,0.42838066,2443.9,2443.8,6.34229141]
[1725253054166,0.42838066,2443.9,2443.8,9.28850756]
[1725253057791,0.48879195,2443.9,2443.8,9.28850756]
[1725253062784,0.06041129,2443.9,2443.8,9.41990756]
[1725253063145,0.42837139,2444.4,2444.1,2.86401]
[1725253063286,0.42837139,2444.4,2444.2,0.08181791]
[1725253063631,0.05877377,2444.3,2444.2,0.08181791]
[1725253067990,0.05877377,2444.3,2444.2,2.94573791]
[1725253068228,0.05877377,2444.3,2444.2,0.08181791]
[1725253069484,0.05877377,2444.3,2444.2,2.94573791]
[1725253072167,0.05877377,2444.3,2444.2,0.08181791]
[1725253072467,0.05877377,2444.3,2444.2,2.94573791]
[1725253072624,0.05877377,2444.3,2444.2,0.08181791]
[1725253074428,0.05877377,2444.3,2444.1,5.25396]
[1725253074670,0.05877377,2444.3,2444.1,2.86396]
[1725253076356,0.05877377,2444.3,2443.9,2.86417]
[1725253077069,0.05877377,2444.3,2444.1,2.86403]
[1725253077869,0.05877377,2444.3,2444.1,8.22616]
[1725253078071,0.05877377,2444.3,2444.1,5.36213]
[1725253078283,0.05877377,2444.3,2444.1,8.2261]
[1725253078641,0.05877377,2444.3,2444.1,5.36207]
[1725253078849,0.05877377,2444.3,2444.1,8.22604]
[1725253079050,0.05877377,2444.3,2444.2,0.08181759]
[1725253079681,0.05877377,2444.3,2443.9,2.86416]
[1725253079838,0.05877377,2444.3,2444.0,2.86415]
[1725253080046,0.87684458,2444.3,2443.8,16.04916]
[1725253080289,0.33314829,2444.3,2443.9,2.86426]
[1725253080439,0.33314829,2444.3,2443.9,2.94608454]
[1725253080639,0.33314829,2444.3,2443.9,2.86426]
[1725253081379,0.05877377,2444.3,2443.9,2.86426]
[1725253083686,0.05877377,2444.3,2444.1,5.29243]
[1725253084392,0.05877377,2444.3,2444.2,0.08181784]
[1725253084559,0.05877377,2444.3,2444.1,5.29243]
[1725253085083,0.05877377,2444.3,2444.2,0.08181766]
[1725253086548,0.05877377,2444.3,2444.1,2.4284]
[1725253086783,0.05877377,2444.3,2444.2,0.08181788]
[1725253087661,0.05877377,2444.3,2444.1,2.4284]
[1725253087865,0.05877377,2444.3,2444.2,0.08181765]
[1725253088082,0.05877377,2444.3,2444.1,2.4284]
[1725253088282,0.05877377,2444.3,2444.2,0.08181757]
[1725253088484,0.05877377,2444.3,2444.2,0.08181792]
[1725253088900,0.05877377,2444.3,2444.1,2.4284]
[1725253089057,0.05877377,2444.3,2444.2,0.0818179]
[1725253089661,0.05877377,2444.3,2444.1,2.4284]
[1725253089987,0.05877377,2444.3,2444.2,0.08181791]
[1725253091009,0.05877377,2444.3,2444.1,2.4284]
[1725253091502,0.05877377,2444.3,2444.1,2.51021793]
[1725253092363,0.05877377,2444.3,2444.2,3.308]
[1725253094770,3.16755629,2444.3,2444.2,3.308]
[1725253095111,8.89515629,2444.3,2444.2,3.308]
[1725253095561,11.89515629,2444.3,2444.2,3.308]
[1725253098727,14.75895629,2444.3,2444.2,3.308]
[1725253099025,17.44785997,2444.3,2444.2,3.308]
[1725253099795,21.53014645,2444.3,2444.2,3.308]
[1725253100010,19.40275399,2444.3,2444.2,3.308]
[1725253100796,19.34398022,2444.3,2444.2,3.308]
[1725253101000,19.40067334,2444.3,2444.2,3.308]
[1725253101327,21.52664844,2444.3,2444.2,3.308]
[1725253101535,19.40067334,2444.3,2444.2,3.308]
[1725253102389,24.38983011,2444.3,2444.2,3.308]
[1725253102728,25.3848262,2444.3,2444.2,3.308]
[1725253103408,22.83195525,2444.3,2444.2,3.308]
[1725253106557,24.95563474,2444.3,2444.2,3.308]
[1725253109367,22.83195525,2444.3,2444.2,3.308]
[1725253109527,24.95449178,2444.3,2444.2,3.308]
[1725253109727,22.83195525,2444.3,2444.2,3.308]
[1725253110164,24.95449178,2444.3,2444.2,3.308]
[1725253112162,5.72994,2443.3,2443.2,2.3224]
[1725253112526,5.7832616,2443.3,2443.2,2.3224]
[1725253114742,8.7832616,2443.3,2443.2,2.3224]
[1725253123875,0.0533216,2443.3,2443.2,9.27188141]
[1725253124238,2.86422,2444.0,2443.4,2.319]
[1725253124528,0.04572863,2443.9,2443.4,2.319]
[1725253124777,0.04572863,2443.9,2443.5,0.08183925]
[1725253125079,3.29253986,2444.1,2443.6,2.319]
[1725253125080,6.15664986,2444.1,2443.6,2.319]
[1725253125291,0.04580941,2443.8,2443.6,2.319]
[1725253125440,2.86416,2444.0,2443.6,2.319]
[1725253125773,0.04586064,2443.9,2443.6,2.319]
[1725253126082,3.04586064,2443.9,2443.7,2.319]
[1725253129083,0.04586064,2443.9,2443.7,2.319]
[1725253130062,0.04586064,2443.9,2443.8,9.3489179]
[1725253130455,2.86362,2444.5,2443.9,2.319]
[1725253130456,2.86368,2444.4,2443.9,2.319]
[1725253130659,0.04666764,2444.3,2443.9,2.319]
[1725253130856,0.04666764,2444.3,2443.9,2.84049346]
[1725253131500,3.04666764,2444.3,2443.9,2.84049346]
[1725253131696,0.04666764,2444.3,2443.9,2.84049346]
[1725253132046,3.04666764,2444.3,2443.9,2.84049346]
[1725253132868,3.04666764,2444.3,2443.9,3.38573346]
[1725253133082,0.04666764,2444.3,2444.0,2.319]
[1725253137575,0.04666764,2444.3,2444.1,2.94574282]
[1725253137917,0.04666764,2444.3,2444.2,2.319]
[1725253138070,6.29185589,2444.6,2444.2,2.319]
[1725253138270,0.04366007,2444.3,2444.2,2.319]
[1725253138573,6.29185589,2444.6,2444.2,2.319]
[1725253138774,0.04366007,2444.3,2444.2,2.319]
[1725253139014,6.29185589,2444.6,2444.2,2.319]
[1725253139313,0.04383934,2444.5,2444.2,2.319]
[1725253142979,0.04383934,2444.5,2443.7,7.44]
[1725253142980,2.3603,2444.4,2443.7,7.44]
[1725253143359,2.86439,2443.8,2443.7,7.44]
[1725253143537,2.86463,2443.6,2443.4,2.4476]
[1725253143943,1.26245871,2443.5,2443.1,2.4476]
[1725253144270,2.86544,2442.9,2442.5,2.4476]
[1725253144548,2.86541,2443.0,2442.5,2.4476]
[1725253144751,0.04192831,2442.8,2442.5,2.4476]
[1725253145055,2.86541,2443.0,2442.5,2.4476]
[1725253145344,2.86541,2443.0,2442.5,2.94696552]
[1725253145552,0.04189242,2442.9,2442.5,2.94696552]
[1725253147112,2.4869,2442.8,2442.0,9.7858]
[1725253147273,6.27502629,2442.8,2442.1,2.86636]
[1725253147419,2.90700167,2442.7,2442.1,0.807856]
[1725253147622,2.90700167,2442.7,2442.1,3.674236]
[1725253147623,3.0,2442.6,2442.1,3.674236]
[1725253148020,0.04104845,2442.5,2442.1,3.674236]
[1725253148672,0.04104845,2442.5,2442.3,2.4871]
[1725253148857,3.0,2442.7,2442.3,5.35317]
[1725253149025,0.04101917,2442.4,2442.3,5.35317]
[1725253149225,3.0,2442.8,2442.3,6.161026]
[1725253149465,0.04101917,2442.4,2442.3,3.294956]
[1725253149624,3.0,2442.8,2442.3,2.4871]
[1725253150133,0.04108582,2442.7,2442.3,2.4871]
[1725253150465,3.0,2442.8,2442.3,5.35324]
[1725253150662,0.04103455,2442.6,2442.3,5.35324]
[1725253150877,0.04108582,2442.7,2442.3,5.35324]
[1725253151084,0.04098328,2442.5,2442.3,5.35324]
[1725253151450,3.0,2442.9,2442.3,5.35324]
[1725253151963,0.04113709,2442.8,2442.4,2.86602]
[1725253154263,0.04113709,2442.8,2442.5,2.56707224]
[1725253154492,0.04113709,2442.8,2442.6,2.8657]
[1725253154639,2.86515,2443.2,2442.7,0.08186614]
[1725253154975,3.50240724,2443.2,2442.7,0.08186614]
[1725253155965,2.86522,2443.1,2442.7,0.08186614]
[1725253156341,3.0,2443.0,2442.7,0.08186614]
[1725253156889,3.0,2443.1,2442.7,0.08186614]
[1725253157035,3.93675872,2443.1,2442.7,0.08186614]
[1725253157853,3.0,2443.1,2442.7,0.08186614]
[1725253159788,5.86522,2443.1,2442.5,2.4852]
[1725253161144,5.86522,2443.1,2442.5,5.35107]
[1725253161853,2.86549,2442.9,2442.3,2.4778]
[1725253162046,5.86525,2443.1,2442.4,2.94782892]
[1725253162244,5.86525,2443.1,2442.5,2.4778]
[1725253162981,5.86525,2443.1,2442.6,2.86576]
[1725253162982,0.04094268,2443.0,2442.6,2.86576]
[1725253163544,0.04094268,2443.0,2442.5,2.4778]
[1725253163769,3.0,2443.1,2442.5,2.4778]
[1725253163968,2.86563,2442.8,2442.5,2.4778]
[1725253164602,0.04078889,2442.7,2442.5,2.4778]
[1725253165185,0.04073762,2442.6,2442.5,2.4778]
[1725253165382,2.90656762,2442.6,2442.2,9.7571]
[1725253166953,0.04073762,2442.6,2442.2,9.7571]
[1725253167162,0.04073762,2442.6,2442.5,8.04152]
[1725253167365,0.42858441,2443.2,2442.6,2.3097]
[1725253167679,0.42858441,2443.2,2442.7,0.08186294]
[1725253168882,3.42858441,2443.2,2442.7,0.08186294]
[1725253169081,3.42858441,2443.2,2442.7,3.76620084]
[1725253169343,0.42858441,2443.2,2442.9,2.2584]
[1725253170378,3.29370441,2443.2,2442.9,2.2584]
[1725253170704,3.8374007,2443.2,2442.6,2.3901]
[1725253170866,4.75327514,2443.2,2442.6,2.3901]
[1725253171203,4.75327514,2443.2,2442.6,5.25583]
[1725253171409,1.88815514,2443.2,2442.6,5.25583]
[1725253171569,3.9722807,2443.2,2442.6,5.25583]
[1725253172207,3.42858441,2443.2,2442.6,5.25583]
[1725253174480,3.42858441,2443.2,2442.7,2.86566]
[1725253177216,3.42858441,2443.2,2442.7,2.94747522]
[1725253177416,3.42858441,2443.2,2442.9,2.4396]
[1725253177803,0.03950218,2443.1,2442.9,2.4396]
[1725253179925,0.67281484,2443.1,2442.7,2.86561]
[1725253180126,3.67281484,2443.1,2442.7,2.86561]
[1725253180350,0.67281484,2443.1,2442.7,2.86561]
[1725253180948,3.53807484,2443.1,2442.6,3.53320595]
[1725253181357,0.69666593,2443.0,2442.6,3.53320595]
[1725253181557,0.73646712,2443.0,2442.6,3.53320595]
[1725253181708,0.73646712,2443.0,2442.6,2.3131]
[1725253182258,0.73646712,2443.0,2442.6,5.17889]
[1725253182628,0.03980119,2443.0,2442.6,5.17889]
[1725253183017,6.29372441,2443.2,2442.6,5.17889]
[1725253183310,6.29372441,2443.2,2442.6,5.2607614]
[1725253183514,0.0398851,2443.1,2442.6,5.2607614]
[1725253184791,0.0398851,2443.1,2442.7,2.86564]
[1725253185079,0.0398851,2443.1,2443.0,2.4804]
[1725253186248,0.0398851,2443.1,2442.9,2.86543]
[1725253190285,3.0,2443.3,2442.9,2.86543]
[1725253190878,0.03982742,2443.2,2442.9,2.86543]
[1725253191259,3.0,2443.3,2442.9,2.86543]
[1725253191459,0.03977617,2443.1,2442.9,2.86543]
[1725253191659,0.586491,2443.2,2442.9,2.86543]
[1725253191859,0.03972492,2443.0,2442.9,2.86543]
[1725253192054,3.0,2443.3,2442.9,5.73079]
[1725253192280,0.03972492,2443.0,2442.9,2.86536]
[1725253192496,1.20271696,2443.4,2442.9,2.86536]
[1725253192657,0.03972492,2443.0,2442.9,2.86536]
[1725253192858,4.20271696,2443.4,2442.9,2.86536]
[1725253193078,0.03972492,2443.0,2442.9,2.86536]
[1725253193279,1.17642683,2443.3,2442.9,2.86536]
[1725253193509,0.03972492,2443.0,2442.9,2.86536]
[1725253193803,0.03982742,2443.2,2442.9,2.86536]
[1725253194004,0.03972492,2443.0,2442.9,2.86536]
[1725253194190,0.54189712,2443.2,2442.9,2.86536]
[1725253194498,0.03972492,2443.0,2442.9,2.86536]
[1725253194701,4.20271696,2443.4,2442.9,2.86536]
[1725253194867,0.03972492,2443.0,2442.9,2.86536]
[1725253195071,0.87642683,2443.3,2442.9,2.86536]
[1725253195285,0.03827931,2443.0,2442.9,2.86536]
[1725253195593,0.03832334,2443.0,2442.9,2.86536]
[1725253195799,0.87642683,2443.3,2442.9,2.86536]
[1725253196010,0.03832334,2443.0,2442.9,2.86536]
[1725253196194,0.50791438,2443.2,2442.9,2.86536]
[1725253196494,0.03832334,2443.0,2442.9,2.86536]
[1725253196712,3.87642683,2443.3,2442.9,2.86536]
[1725253197002,0.03832334,2443.0,2442.9,2.86536]
[1725253197297,3.0,2443.2,2443.0,2.4565]
[1725253197609,3.0,2443.2,2442.9,2.86536]
[1725253197610,0.80791438,2443.2,2442.9,2.86536]
[1725253197817,0.80791438,2443.2,2442.8,5.32206]
[1725253198611,1.35161067,2443.2,2442.8,2.4565]
[1725253198801,0.75787375,2443.1,2442.8,2.4565]
[1725253201414,0.75787375,2443.1,2442.7,2.8656]
[1725253201840,0.75787375,2443.1,2442.6,2.2649]
[1725253202020,0.75787375,2443.1,2442.5,2.86583]
[1725253202021,2.3312,2443.0,2442.5,2.86583]
[1725253202356,3.80791438,2443.2,2442.6,0.08187214]
[1725253202536,3.0,2443.2,2442.9,2.86543]
[1725253202722,0.79901291,2443.2,2442.9,2.86543]
[1725253203125,0.79901291,2443.2,2442.8,1.30196871]
[1725253203665,0.79901291,2443.2,2442.8,4.08565595]
[1725253204427,0.79901291,2443.2,2442.8,4.16751875]
[1725253204728,0.79901291,2443.2,2442.8,4.08565595]
[1725253205221,3.0,2443.3,2442.9,2.86542]
[1725253205423,5.12526914,2443.4,2442.9,2.86542]
[1725253205732,7.99019914,2443.4,2442.9,2.86542]
[1725253206338,9.51938362,2443.4,2442.9,2.86542]
[1725253207165,9.51938362,2443.4,2442.8,1.22010595]
[1725253207166,2.86502,2443.3,2442.7,5.11817]
[1725253207329,3.0,2443.2,2442.7,5.11817]
[1725253208160,3.0,2443.3,2442.8,2.86554]
[1725253209336,3.0,2443.3,2443.0,2.3009]
[1725253210123,3.0,2443.3,2442.9,2.86543]
[1725253210374,2.12526914,2443.4,2443.1,2.86521]
[1725253210677,5.41941742,2443.8,2443.1,2.86521]
[1725253210678,4.56120136,2443.8,2443.3,2.3009]
[1725253210969,4.98969052,2443.8,2443.3,5.16587]
[1725253211167,3.29294916,2443.8,2443.3,5.16587]
[1725253211374,4.52206133,2443.8,2443.3,5.16587]